fUSD/lending_fUSD_20240327
["ID","MTS","AMOUNT","RATE_DAILY","PERIOD"]
[320823400,1711581057758,-617.48,0.00054246,120]
[320823401,1711581057768,-1391.36,0.00054246,120]
[320823402,1711581057777,-500.0,0.00054246,120]
[320823403,1711581057786,-1355.84,0.00054246,120]
[320823404,1711581057796,-508.23579988,0.00054246,120]
[320823405,1711581057806,-500.0,0.00054246,120]
[320823406,1711581057817,-1484.54,0.00054246,120]
[320823407,1711581057827,-793.85,0.00054246,120]
[320823408,1711581057837,-500.0,0.00054246,120]
[320823409,1711581057847,-524.22,0.00054246,120]
[320823410,1711581057857,-198.95192816,0.00054246,120]
[320823411,1711581057867,-500.0,0.00054246,120]
[320823412,1711581057877,-513.97846767,0.00054246,120]
[320823413,1711581057887,-1727.56,0.00054246,120]
[320823414,1711581057897,-658.21,0.00054246,120]
[320823415,1711581057906,-500.0,0.00054246,120]
[320823416,1711581057915,-1522.25,0.00054246,21]
[320823417,1711581057925,-500.0,0.00054246,120]
[320823418,1711581057936,-500.0,0.00054246,120]
[320823419,1711581057945,-1118.12,0.00054246,120]
[320823420,1711581057955,-500.0,0.00054246,120]
[320823421,1711581057964,-3122.71,0.00054246,120]
[320823422,1711581057973,-500.0,0.00054246,120]
[320823423,1711581057983,-1550.36,0.00054246,120]
[320823424,1711581057993,-500.0,0.00054246,120]
[320823425,1711581058004,-509.22049059,0.00054246,120]
[320823426,1711581058013,-500.0,0.00054246,120]
[320823427,1711581058022,-500.0,0.00054246,120]
[320823428,1711581058031,-1292.88,0.00054246,120]
[320823429,1711581058040,-1000.0,0.00054246,14]
[320823430,1711581058049,-508.41,0.00054246,120]
[320823431,1711581058059,-730.9,0.00054246,120]
[320823432,1711581058070,-500.0,0.00054246,120]
[320823433,1711581058078,-2018.52,0.00054246,120]
[320823434,1711581058087,-831.21,0.00054246,120]
[320823435,1711581058099,-500.0,0.00054246,120]
[320823436,1711581058108,-500.0,0.00054246,120]
[320823437,1711581058118,-500.0,0.00054246,120]
[320823438,1711581058127,-541.98,0.00054246,120]
[320823439,1711581058137,-500.0,0.00054246,120]
[320823440,1711581058147,-795.27,0.00054246,120]
[320823441,1711581058156,-919.96,0.00054246,120]
[320823442,1711581058166,-500.0,0.00054246,120]
[320823443,1711581058175,-506.31801739,0.00054246,120]
[320823444,1711581058184,-1260.5,0.00054246,120]
[320823445,1711581058193,-500.0,0.00054246,120]
[320823446,1711581058202,-500.0,0.00054246,120]
[320823447,1711581058211,-500.0,0.00054246,120]
[320823448,1711581058220,-500.0,0.00054246,120]
[320823449,1711581058229,-500.0,0.00054246,120]
[320823450,1711581058238,-721.77,0.00054246,120]
[320823451,1711581058247,-1453.52,0.00054246,120]
[320823452,1711581058258,-500.0,0.00054246,120]
[320823453,1711581058268,-500.0,0.00054246,7]
[320823454,1711581058277,-3218.39,0.00054246,120]
[320823455,1711581058287,-1258.98,0.00054246,120]
[320823456,1711581058296,-500.0,0.00054246,120]
[320823457,1711581058306,-1359.03,0.00054246,120]
[320823458,1711581058316,-219.75246915,0.00054246,120]
[320823459,1711581058325,-2307.44,0.00054246,120]
[320823460,1711581058334,-502.58982315,0.00054246,120]
[320823461,1711581058344,-501.35099002,0.00054246,120]
[320823462,1711581058353,-500.0,0.00054246,120]
[320823463,1711581058362,-500.0,0.00054246,120]
[320823464,1711581058371,-1948.64,0.00054246,120]
[320823465,1711581058380,-506.10115757,0.00054246,120]
[320823466,1711581058391,-500.0,0.00054246,120]
[320823467,1711581058402,-500.0,0.00054246,120]
[320823468,1711581058413,-500.0,0.00054246,120]
[320823469,1711581058422,-500.0,0.00054246,120]
[320823470,1711581058431,-328.42004765,0.00054246,120]
[320823471,1711581058442,-500.0,0.00054246,120]
[320823472,1711581058451,-500.0,0.00054246,120]
[320823473,1711581058461,-500.0,0.00054246,120]
[320823474,1711581058474,-500.56573633,0.00054246,120]
[320823475,1711581058483,-500.0,0.00054246,120]
[320823476,1711581058493,-500.0,0.00054246,120]
[320823477,1711581058502,-500.0,0.00054246,120]
[320823478,1711581058513,-500.0,0.00054246,120]
[320823479,1711581058523,-901.12,0.00054246,120]
[320823480,1711581058533,-409.3476318,0.00054246,120]
[320823481,1711581058544,-879.36,0.00054246,120]
[320823482,1711581058554,-2561.96,0.00054246,120]
[320823483,1711581058564,-500.0,0.00054246,120]
[320823484,1711581058573,-500.0,0.00054246,120]
[320823485,1711581058582,-500.0,0.00054246,120]
[320823486,1711581058591,-500.0,0.00054246,120]
[320823487,1711581058601,-506.83295703,0.00054246,120]
[320823488,1711581058611,-500.0,0.00054246,120]
[320823489,1711581058620,-500.0,0.00054246,120]
[320823490,1711581058629,-500.0,0.00054246,65]
[320823491,1711581058639,-1543.79,0.00054246,120]
[320823492,1711581058648,-500.0,0.00054246,120]
[320823493,1711581058657,-500.0,0.00054246,120]
[320823494,1711581058667,-668.3,0.00054246,120]
[320823495,1711581058676,-748.59,0.00054246,120]
[320823496,1711581058685,-500.0,0.00054246,120]
[320823497,1711581058694,-797.13,0.00054246,120]
[320823498,1711581058704,-625.0,0.00054246,120]
[320823499,1711581058714,-500.0,0.00054246,120]
[320823500,1711581058725,-504.09694338,0.00054246,120]
[320823501,1711581058735,-500.0,0.00054246,120]
[320823502,1711581058745,-500.0,0.00054246,120]
[320823503,1711581058754,-1629.17,0.00054246,120]
[320823504,1711581058762,-500.0,0.00054246,120]
[320823505,1711581058771,-513.99,0.00054246,120]
[320823506,1711581058780,-500.0,0.00054246,120]
[320823507,1711581058789,-505.17111938,0.00054246,120]
[320823508,1711581058799,-2411.4,0.00054246,120]
[320823509,1711581058807,-1506.67,0.00054246,120]
[320823510,1711581058817,-561.2,0.00054246,120]
[320823511,1711581058826,-640.8,0.00054246,120]
[320823512,1711581058836,-1781.21,0.00054246,120]
[320823513,1711581058845,-500.0,0.00054246,120]
[320823514,1711581058854,-905.83,0.00054246,120]
[320823515,1711581058863,-745.01,0.00054246,120]
[320823516,1711581058871,-1574.59,0.00054246,120]
[320823517,1711581058880,-500.0,0.00054246,120]
[320823518,1711581058890,-2583.76,0.00054246,120]
[320823519,1711581058899,-1652.99,0.00054246,120]
[320823520,1711581058907,-500.0,0.00054246,120]
[320823521,1711581058916,-500.0,0.00054246,120]
[320823522,1711581058925,-2319.94,0.00054246,120]
[320823523,1711581058935,-157.12313493,0.00054246,120]
[320823524,1711581058945,-601.23,0.00054246,120]
[320823525,1711581058954,-500.0,0.00054246,120]
[320823526,1711581058963,-500.0,0.00054246,120]
[320823527,1711581058972,-500.0,0.00054246,120]
[320823528,1711581058981,-500.0,0.00054246,120]
[320823529,1711581058990,-500.0,0.00054246,120]
[320823530,1711581058999,-883.02,0.00054246,120]
[320823531,1711581059008,-500.0,0.00054246,120]
[320823532,1711581059017,-500.0,0.00054246,120]
[320823533,1711581059026,-1388.79,0.00054246,120]
[320823534,1711581059035,-500.0,0.00054246,120]
[320823535,1711581059044,-500.0,0.00054246,120]
[320823536,1711581059053,-500.0,0.00054246,120]
[320823537,1711581059062,-559.78,0.00054246,120]
[320823538,1711581059071,-2004.19,0.00054246,120]
[320823539,1711581059083,-500.0,0.00054246,2]
[320823540,1711581059092,-500.0,0.00054246,120]
[320823541,1711581059101,-2533.25,0.00054246,120]
[320823542,1711581059111,-500.0,0.00054246,120]
[320823543,1711581059121,-966.19,0.00054246,120]
[320823544,1711581059132,-818.02,0.00054246,120]
[320823545,1711581059142,-500.0,0.00054246,120]
[320823546,1711581059152,-1225.81,0.00054246,120]
[320823547,1711581059161,-2839.63,0.00054246,120]
[320823548,1711581059170,-2227.66,0.00054246,120]
[320823549,1711581059179,-500.0,0.00054246,120]
[320823550,1711581059189,-1348.51,0.00054246,120]
[320823551,1711581059201,-477.55420714,0.00054246,120]
[320823552,1711581059210,-501.88059289,0.00054246,120]
[320823553,1711581059221,-500.0,0.00054246,120]
[320823554,1711581059231,-8848.32,0.00054246,120]
[320823555,1711581059242,-685.97,0.00054246,120]
[320823556,1711581059251,-500.0,0.00054246,120]
[320823557,1711581059261,-500.0,0.00054246,120]
[320823558,1711581059271,-500.0,0.00054246,120]
[320823559,1711581059281,-730.93433,0.00054246,120]
[320823560,1711581059290,-730.93433,0.00054246,120]
[320823561,1711581059300,-1985.22,0.00054246,120]
[320823562,1711581059412,-730.93433,0.00054246,120]
[320823563,1711581059421,-730.93433,0.00054246,120]
[320823564,1711581059431,-758.89,0.00054246,120]
[320823565,1711581059441,-730.93433,0.00054246,120]
[320823566,1711581059450,-1773.79,0.00054246,120]
[320823567,1711581059459,-500.0,0.00054246,120]
[320823568,1711581059473,-500.0,0.00054246,120]
[320823569,1711581059483,-730.93433,0.00054246,120]
[320823570,1711581059493,-501.93978249,0.00054246,120]
[320823571,1711581059502,-500.0,0.00054246,120]
[320823572,1711581059512,-500.0,0.00054246,120]
[320823573,1711581059522,-730.93433,0.00054246,120]
[320823574,1711581059531,-730.93433,0.00054246,120]
[320823575,1711581059541,-730.93433,0.00054246,120]
[320823576,1711581059551,-730.93433,0.00054246,120]
[320823577,1711581059561,-500.0,0.00054246,120]
[320823578,1711581059570,-500.0,0.00054246,120]
[320823579,1711581059580,-709.57,0.00054246,120]
[320823580,1711581059589,-500.0,0.00054246,120]
[320823581,1711581059598,-879.92,0.00054246,120]
[320823582,1711581059607,-500.0,0.00054246,120]
[320823583,1711581059617,-698.02,0.00054246,120]
[320823584,1711581059627,-500.0,0.00054246,120]
[320823585,1711581059637,-500.0,0.00054246,120]
[320823586,1711581059647,-500.0,0.00054246,120]
[320823587,1711581059656,-1686.33,0.00054246,120]
[320823588,1711581059666,-1762.31,0.00054246,120]
[320823589,1711581059675,-1210.23,0.00054246,120]
[320823590,1711581059685,-505.60188997,0.00054246,120]
[320823591,1711581059694,-2223.96,0.00054246,120]
[320823592,1711581059703,-500.0,0.00054246,120]
[320823593,1711581059713,-1108.32,0.00054246,120]
[320823594,1711581059723,-1133.21,0.00054246,120]
[320823595,1711581059734,-929.38,0.00054246,120]
[320823596,1711581059744,-500.0,0.00054246,120]
[320823597,1711581059753,-1331.11,0.00054246,120]
[320823598,1711581059764,-475.54841486,0.00054246,120]
[320823599,1711581059774,-500.0,0.00054246,120]
[320823600,1711581059786,-500.0,0.00054246,120]
[320823601,1711581059795,-500.0,0.00054246,120]
[320823602,1711581059805,-624.39515855,0.00054246,120]
[320823603,1711581059815,-1799.91,0.00054246,120]
[320823604,1711581059824,-500.0,0.00054246,120]
[320823605,1711581059833,-2951.15,0.00054246,120]
[320823606,1711581059843,-1246.78,0.00054246,120]
[320823607,1711581059854,-507.6178546,0.00054246,120]
[320823608,1711581059863,-500.0,0.00054246,2]
[320823609,1711581059873,-994.47,0.00054246,120]
[320823610,1711581059882,-500.0,0.00054246,120]
[320823611,1711581059892,-837.01,0.00054246,120]
[320823612,1711581059903,-718.49,0.00054246,120]
[320823613,1711581059913,-500.0,0.00054246,120]
[320823614,1711581059922,-500.0,0.00054246,120]
[320823615,1711581059932,-500.0,0.00054246,120]
[320823616,1711581059942,-500.0,0.00054246,120]
[320823617,1711581059951,-1092.97,0.00054246,120]
[320823618,1711581059961,-500.0,0.00054246,120]
[320823619,1711581059970,-323.72826052,0.00054246,120]
[320823620,1711581059979,-500.0,0.00054246,120]
[320823621,1711581059989,-500.0,0.00054246,120]
[320823622,1711581059999,-1509.64,0.00054246,120]
[320823623,1711581060008,-503.31974638,0.00054246,120]
[320823624,1711581060018,-500.0,0.00054246,120]
[320823625,1711581060027,-500.0,0.00054246,120]
[320823626,1711581060037,-1476.67,0.00054246,120]
[320823627,1711581060046,-2245.23,0.00054246,120]
[320823628,1711581060055,-500.0,0.00054246,120]
[320823629,1711581060065,-500.0,0.00054246,2]
[320823630,1711581060074,-500.0,0.00054246,120]
[320823631,1711581060083,-500.0,0.00054246,120]
[320823632,1711581060093,-884.19,0.00054246,120]
[320823633,1711581060103,-1006.88,0.00054246,120]
[320823634,1711581060113,-1726.14,0.00054246,120]
[320823635,1711581060121,-500.0,0.00054246,120]
[320823636,1711581060131,-1078.67,0.00054246,120]
[320823637,1711581060141,-966.90824139,0.00054246,2]
[320823638,1711581060150,-652.47,0.00054246,120]
[320823639,1711581060159,-500.0,0.00054246,120]
[320823640,1711581060168,-500.0,0.00054246,2]
[320823641,1711581060178,-1837.91,0.00054246,120]
[320823642,1711581060187,-500.0,0.00054246,120]
[320823643,1711581060196,-1765.84,0.00054246,120]
[320823644,1711581060205,-802.91,0.00054246,120]
[320823645,1711581060214,-500.0,0.00054246,120]
[320823646,1711581060224,-685.83,0.00054246,120]
[320823647,1711581060233,-1011.93,0.00054246,120]
[320823648,1711581060242,-500.0,0.00054246,120]
[320823649,1711581060251,-500.0,0.00054246,120]
[320823650,1711581060261,-1011.36,0.00054246,120]
[320823651,1711581060270,-151.0,0.00054246,120]
[320823652,1711581060279,-151.0,0.00054246,120]
[320823653,1711581060288,-1513.42,0.00054246,120]
[320823654,1711581060297,-288.631007,0.00054246,120]
[320823655,1711581060306,-500.0,0.00054246,120]
[320823656,1711581060317,-500.0,0.00054246,120]
[320823657,1711581060326,-1939.62,0.00054246,120]
[320823658,1711581060335,-1841.61,0.00054246,120]
[320823659,1711581060344,-500.0,0.00054246,120]
[320823660,1711581060353,-1681.02,0.00054246,120]
[320823661,1711581060362,-500.0,0.00054246,120]
[320823662,1711581060372,-539.85,0.00054246,120]
[320823663,1711581060381,-1180.58,0.00054246,120]
[320823664,1711581060390,-500.0,0.00054246,120]
[320823665,1711581060400,-500.0,0.00054246,120]
[320823666,1711581060409,-1760.64,0.00054246,120]
[320823667,1711581060418,-500.0,0.00054246,120]
[320823668,1711581060428,-1852.05,0.00054246,120]
[320823669,1711581060437,-701.11,0.00054246,120]
[320823670,1711581060446,-625.21,0.00054246,120]
[320823671,1711581060456,-500.0,0.00054246,120]
[320823672,1711581060468,-712.19,0.00054246,120]
[320823673,1711581060478,-607.27,0.00054246,120]
[320823674,1711581060488,-500.0,0.00054246,120]
[320823675,1711581060497,-924.49,0.00054246,120]
[320823676,1711581060507,-2671.96,0.00054246,120]
[320823677,1711581060518,-1697.75,0.00054246,120]
[320823678,1711581060528,-1006.91,0.00054247,30]
[320823679,1711581060538,-408.21,0.00054247,30]
[320823680,1711581060549,-509.53890767,0.0005426,120]
[320823681,1711581060560,-1909.22423115,0.00054271,32]
[320823682,1711581060570,-152.49542726,0.00054325,60]
[320823683,1711581060579,-158.12639606,0.00054344,60]
[320823684,1711581060589,-469.78390434,0.00054357,2]
[320823685,1711581060598,-156.10673236,0.00054363,60]
[320823686,1711581060607,-151.01057888,0.00054374,61]
[320823687,1711581060617,-166.5509927,0.00054379,60]
[320823688,1711581060626,-1339.198462,0.0005438,26]
[320823689,1711581060635,-5000.0,0.00054385,90]
[320823690,1711581060645,-437.79,0.000544,7]
[320823691,1711581060654,-1000.0,0.000544,26]
[320823692,1711581060663,-165.93371293,0.0005442,120]
[320823693,1711581060673,-1000.0,0.0005442,26]
[320823694,1711581060682,-173.66274295,0.0005442,2]
[320823695,1711581060691,-5763.92085096,0.0005442,30]
[320823696,1711581060701,-189.62826012,0.0005442,2]
[320823697,1711581060710,-1866.48565883,0.0005442,120]
[320823698,1711581060720,-12370.56459187,0.0005442,2]
[320823699,1711581060729,-189.96013743,0.0005442,11]
[320823700,1711581060739,-509.53890767,0.00054426,120]
[320823701,1711581060748,-1000.0,0.0005444,26]
[320823702,1711581060758,-1000.0,0.0005446,26]
[320823703,1711581060767,-355.64,0.00054462,2]
[320823704,1711581060776,-150.30995796,0.00054467,60]
[320823705,1711581060789,-158.12639606,0.00054473,60]
[320823706,1711581060800,-1000.0,0.0005448,26]
[320823707,1711581060810,-157.032807,0.00054498,115]
[320823708,1711581060821,-1000.0,0.000545,26]
[320823709,1711581060831,-474.32286166,0.0005452,120]
[320823710,1711581060842,-649.67493149,0.0005452,120]
[320823711,1711581060851,-500.0,0.0005452,120]
[320823712,1711581060862,-500.0,0.0005452,2]
[320823713,1711581060871,-500.0,0.0005452,120]
[320823714,1711581060881,-500.0,0.0005452,120]
[320823715,1711581060891,-500.0,0.0005452,120]
[320823716,1711581060902,-500.0,0.0005452,120]
[320823717,1711581060913,-516.50263157,0.0005452,120]
[320823718,1711581060924,-500.0,0.0005452,120]
[320823719,1711581060935,-500.0,0.0005452,120]
[320823720,1711581060945,-500.0,0.0005452,120]
[320823721,1711581060956,-500.0,0.0005452,120]
[320823722,1711581060967,-500.0,0.0005452,120]
[320823723,1711581060976,-500.0,0.0005452,120]
[320823724,1711581060985,-500.0,0.0005452,120]
[320823725,1711581060994,-501.95,0.0005452,120]
[320823726,1711581061003,-500.0,0.0005452,120]
[320823727,1711581061012,-500.0,0.0005452,120]
[320823728,1711581061022,-250.6240763,0.0005452,2]
[320823729,1711581061033,-500.0,0.0005452,120]
[320823730,1711581061145,-500.0,0.0005452,120]
[320823731,1711581061155,-623.01,0.0005452,120]
[320823732,1711581061165,-500.0,0.0005452,120]
[320823733,1711581061174,-500.0,0.0005452,120]
[320823734,1711581061183,-500.0,0.0005452,120]
[320823735,1711581061192,-252.0,0.0005452,120]
[320823736,1711581061200,-500.0,0.0005452,120]
[320823737,1711581061210,-500.0,0.0005452,120]
[320823738,1711581061219,-500.0,0.0005452,120]
[320823739,1711581061229,-500.0,0.0005452,120]
[320823740,1711581061239,-300.0,0.0005452,2]
[320823741,1711581061249,-500.0,0.0005452,120]
[320823742,1711581061258,-500.0,0.0005452,120]
[320823743,1711581061268,-500.0,0.0005452,120]
[320823744,1711581061277,-500.0,0.0005452,120]
[320823745,1711581061287,-603.02310527,0.0005452,120]
[320823746,1711581061297,-500.0,0.0005452,120]
[320823747,1711581061306,-500.0,0.0005452,120]
[320823748,1711581061318,-500.0,0.0005452,120]
[320823749,1711581061327,-500.0,0.0005452,120]
[320823750,1711581061338,-540.27524384,0.0005452,120]
[320823751,1711581061348,-358.93893686,0.0005452,120]
[320823752,1711581061357,-506.07727027,0.0005452,120]
[320823753,1711581061367,-500.0,0.0005452,120]
[320823754,1711581061377,-860.72,0.0005452,120]
[320823755,1711581061387,-500.0,0.0005452,120]
[320823756,1711581061397,-500.0,0.0005452,120]
[320823757,1711581061408,-500.0,0.0005452,120]
[320823758,1711581061417,-168.16699802,0.0005452,120]
[320823759,1711581061427,-500.0,0.0005452,120]
[320823760,1711581061436,-500.0,0.0005452,120]
[320823761,1711581061446,-500.0,0.0005452,120]
[320823762,1711581061456,-500.0,0.0005452,120]
[320823763,1711581061468,-1135.58,0.0005452,120]
[320823764,1711581061478,-506.90617353,0.0005452,120]
[320823765,1711581061487,-208.58391087,0.0005452,120]
[320823766,1711581061496,-500.0,0.0005452,120]
[320823767,1711581061506,-506.54099108,0.0005452,120]
[320823768,1711581061516,-508.45462986,0.0005452,120]
[320823769,1711581061525,-500.0,0.0005452,120]
[320823770,1711581061535,-500.0,0.0005452,120]
[320823771,1711581061548,-500.0,0.0005452,120]
[320823772,1711581061557,-503.49445238,0.0005452,120]
[320823773,1711581061571,-506.15246699,0.0005452,120]
[320823774,1711581061581,-500.0,0.0005452,120]
[320823775,1711581061591,-500.0,0.0005452,120]
[320823776,1711581061601,-500.0,0.0005452,120]
[320823777,1711581061611,-500.0,0.0005452,120]
[320823778,1711581061620,-500.0,0.0005452,120]
[320823779,1711581061630,-500.0,0.0005452,120]
[320823780,1711581061639,-500.0,0.0005452,120]
[320823781,1711581061650,-500.0,0.0005452,120]
[320823782,1711581061659,-500.0,0.0005452,120]
[320823783,1711581061668,-500.0,0.0005452,120]
[320823784,1711581061679,-554.22119073,0.0005452,120]
[320823785,1711581061689,-500.0,0.0005452,120]
[320823786,1711581061698,-503.72995215,0.0005452,120]
[320823787,1711581061708,-500.0,0.0005452,120]
[320823788,1711581061717,-500.0,0.0005452,120]
[320823789,1711581061726,-500.0,0.0005452,120]
[320823790,1711581061736,-500.0,0.0005452,120]
[320823791,1711581061745,-500.0,0.0005452,120]
[320823792,1711581061754,-500.0,0.0005452,120]
[320823793,1711581061764,-500.0,0.0005452,120]
[320823794,1711581061773,-1035.08,0.0005452,120]
[320823795,1711581061783,-500.0,0.0005452,120]
[320823796,1711581061792,-500.0,0.0005452,120]
[320823797,1711581061802,-500.0,0.0005452,120]
[320823798,1711581061812,-500.0,0.0005452,120]
[320823799,1711581061823,-500.0,0.0005452,120]
[320823800,1711581061834,-500.0,0.0005452,120]
[320823801,1711581061844,-500.0,0.0005452,120]
[320823802,1711581061854,-500.0,0.0005452,120]
[320823803,1711581061865,-500.0,0.0005452,120]
[320823804,1711581061875,-1080.03,0.0005452,120]
[320823805,1711581061885,-500.0,0.0005452,120]
[320823806,1711581061895,-500.0,0.0005452,120]
[320823807,1711581061905,-1266.82,0.0005452,120]
[320823808,1711581061915,-500.0,0.0005452,120]
[320823809,1711581061925,-500.0,0.0005452,120]
[320823810,1711581061934,-1472.38,0.0005452,120]
[320823811,1711581061943,-500.0,0.0005452,120]
[320823812,1711581061953,-1596.96,0.0005452,120]
[320823813,1711581061962,-500.0,0.0005452,120]
[320823814,1711581061972,-500.0,0.0005452,120]
[320823815,1711581061981,-500.0,0.0005452,120]
[320823816,1711581061991,-544.11,0.0005452,120]
[320823817,1711581062001,-500.0,0.0005452,120]
[320823818,1711581062011,-500.0,0.0005452,120]
[320823819,1711581062020,-500.0,0.0005452,120]
[320823820,1711581062030,-1313.86,0.0005452,120]
[320823821,1711581062039,-500.0,0.0005452,120]
[320823822,1711581062049,-500.0,0.0005452,120]
[320823823,1711581062058,-500.0,0.0005452,120]
[320823824,1711581062070,-500.0,0.0005452,60]
[320823825,1711581062080,-500.0,0.0005452,120]
[320823826,1711581062090,-500.0,0.0005452,120]
[320823827,1711581062099,-500.0,0.0005452,120]
[320823828,1711581062109,-638.47,0.0005452,120]
[320823829,1711581062118,-500.0,0.0005452,120]
[320823830,1711581062127,-500.0,0.0005452,120]
[320823831,1711581062137,-607.84,0.0005452,120]
[320823832,1711581062147,-1186.43,0.0005452,120]
[320823833,1711581062156,-500.0,0.0005452,120]
[320823834,1711581062166,-506.15,0.0005452,120]
[320823835,1711581062176,-500.0,0.0005452,120]
[320823836,1711581062185,-500.0,0.0005452,120]
[320823837,1711581062195,-601.61,0.0005452,120]
[320823838,1711581062204,-500.0,0.0005452,120]
[320823839,1711581062213,-500.0,0.0005452,120]
[320823840,1711581062223,-500.0,0.0005452,120]
[320823841,1711581062232,-500.0,0.0005452,120]
[320823842,1711581062241,-500.0,0.0005452,120]
[320823843,1711581062250,-500.0,0.0005452,120]
[320823844,1711581062259,-500.0,0.0005452,120]
[320823845,1711581062269,-500.0,0.0005452,120]
[320823846,1711581062278,-500.0,0.0005452,120]
[320823847,1711581062287,-632.85,0.0005452,120]
[320823848,1711581062296,-500.0,0.0005452,120]
[320823849,1711581062306,-864.57,0.0005452,120]
[320823850,1711581062316,-500.0,0.0005452,120]
[320823851,1711581062326,-507.07233479,0.0005452,120]
[320823852,1711581062336,-500.0,0.0005452,120]
[320823853,1711581062347,-500.0,0.0005452,120]
[320823854,1711581062356,-500.0,0.0005452,120]
[320823855,1711581062366,-500.0,0.0005452,120]
[320823856,1711581062375,-500.0,0.0005452,120]
[320823857,1711581062385,-500.0,0.0005452,120]
[320823858,1711581062394,-573.5290868,0.0005452,120]
[320823859,1711581062404,-1361.9,0.0005452,120]
[320823860,1711581062413,-500.0,0.0005452,120]
[320823861,1711581062423,-500.0,0.0005452,120]
[320823862,1711581062432,-500.0,0.0005452,120]
[320823863,1711581062442,-766.4,0.0005452,120]
[320823864,1711581062451,-500.0,0.0005452,120]
[320823865,1711581062460,-500.0,0.0005452,120]
[320823866,1711581062472,-860.47,0.0005452,120]
[320823867,1711581062482,-500.0,0.0005452,120]
[320823868,1711581062491,-500.0,0.0005452,120]
[320823869,1711581062501,-500.0,0.0005452,120]
[320823870,1711581062511,-500.0,0.0005452,120]
[320823871,1711581062520,-500.0,0.0005452,120]
[320823872,1711581062530,-500.0,0.0005452,120]
[320823873,1711581062538,-500.0,0.0005452,120]
[320823874,1711581062549,-500.0,0.0005452,120]
[320823875,1711581062558,-519.53,0.0005452,120]
[320823876,1711581062569,-767.02,0.0005452,120]
[320823877,1711581062578,-500.0,0.0005452,120]
[320823878,1711581062587,-500.0,0.0005452,120]
[320823879,1711581062596,-500.0,0.0005452,120]
[320823880,1711581062605,-500.0,0.0005452,120]
[320823881,1711581062615,-500.0,0.0005452,120]
[320823882,1711581062624,-500.0,0.0005452,120]
[320823883,1711581062633,-500.0,0.0005452,120]
[320823884,1711581062738,-500.0,0.0005452,120]
[320823885,1711581062748,-500.0,0.0005452,120]
[320823886,1711581062758,-642.02,0.0005452,120]
[320823887,1711581062767,-507.64092668,0.0005452,120]
[320823888,1711581062777,-500.0,0.0005452,120]
[320823889,1711581062787,-500.0,0.0005452,120]
[320823890,1711581062797,-500.0,0.0005452,120]
[320823891,1711581062806,-502.79446611,0.0005452,120]
[320823892,1711581062817,-500.0,0.0005452,120]
[320823893,1711581062826,-505.78187246,0.0005452,120]
[320823894,1711581062836,-500.0,0.0005452,120]
[320823895,1711581062845,-500.0,0.0005452,120]
[320823896,1711581062855,-500.0,0.0005452,120]
[320823897,1711581062864,-500.0,0.0005452,120]
[320823898,1711581062874,-500.0,0.0005452,120]
[320823899,1711581062883,-500.0,0.0005452,120]